bitfinex/quotes_BTCUSD_20230109
["timestamp","ask_amount","ask_price","bid_price","bid_amount"]
[1673261226393,2.77083267,17286.0,17285.0,0.01008143]
[1673261226899,3.3565027,17286.0,17285.0,0.01008143]
[1673261227148,2.96799677,17286.0,17285.0,0.01008143]
[1673261227405,3.41205639,17286.0,17285.0,0.01008143]
[1673261227685,3.60922049,17286.0,17285.0,0.01008143]
[1673261227894,2.96799677,17286.0,17285.0,0.01008143]
[1673261228198,2.77083267,17286.0,17285.0,0.01008143]
[1673261228452,3.41205639,17286.0,17285.0,0.01008143]
[1673261228744,2.96799677,17286.0,17285.0,0.01008143]
[1673261228983,2.77083267,17286.0,17285.0,0.01008143]
[1673261230524,3.51989808,17286.0,17285.0,0.01008143]
[1673261231021,3.05617929,17286.0,17285.0,0.01008143]
[1673261232625,3.35617929,17286.0,17285.0,0.01008143]
[1673261232816,2.77742506,17286.0,17285.0,0.01008143]
[1673261233825,2.77717286,17286.0,17285.0,0.01008143]
[1673261234835,2.77692066,17286.0,17285.0,0.01008143]
[1673261235905,2.77666846,17286.0,17285.0,0.01008143]
[1673261236981,2.77641626,17286.0,17285.0,0.01008143]
[1673261238069,2.77616406,17286.0,17285.0,0.01008143]
[1673261238790,2.77591186,17286.0,17285.0,0.01008143]
[1673261239616,3.35441386,17286.0,17285.0,0.01008143]
[1673261239871,3.35416166,17286.0,17285.0,0.01008143]
[1673261240889,3.35390946,17286.0,17285.0,0.01008143]
[1673261241650,3.35390946,17286.0,17285.0,0.00907329]
[1673261241933,3.35365726,17286.0,17285.0,0.00907329]
[1673261243957,3.35340497,17286.0,17285.0,0.00907329]
[1673261244754,3.99462869,17286.0,17285.0,0.00907329]
[1673261245004,3.40877899,17286.0,17285.0,0.00907329]
[1673261245265,2.76755527,17286.0,17285.0,0.00907329]
[1673261245557,3.35329011,17286.0,17285.0,0.00907329]
[1673261245768,3.35303671,17286.0,17285.0,0.00907329]
[1673261246011,2.76730187,17286.0,17285.0,0.00907329]
[1673261246522,3.35304466,17286.0,17285.0,0.00907329]
[1673261246765,3.35279237,17286.0,17285.0,0.00907329]
[1673261247012,2.76704958,17286.0,17285.0,0.00907329]
[1673261247261,3.4082733,17286.0,17285.0,0.00907329]
[1673261247765,2.76679618,17286.0,17285.0,0.00907329]
[1673261248743,2.76653923,17286.0,17285.0,0.00907329]
[1673261249730,2.76628228,17286.0,17285.0,0.00907329]
[1673261250479,3.35212666,17286.0,17285.0,0.00907329]
[1673261250986,3.35186971,17286.0,17285.0,0.00907329]
[1673261251509,2.76602533,17286.0,17285.0,0.00907329]
[1673261251758,2.76602533,17286.0,17285.0,0.00816597]
[1673261252011,2.76576838,17286.0,17285.0,0.00816597]
[1673261252865,2.76551143,17286.0,17285.0,0.00816597]
[1673261253897,2.76525448,17286.0,17285.0,0.00816597]
[1673261254857,2.76499753,17286.0,17285.0,0.00816597]
[1673261255833,2.76474058,17286.0,17285.0,0.00816597]
[1673261256825,2.76448363,17286.0,17285.0,0.00816597]
[1673261258075,2.76422668,17286.0,17285.0,0.00816597]
[1673261258865,2.76396973,17286.0,17285.0,0.00816597]
[1673261259860,2.76371278,17286.0,17285.0,0.00816597]
[1673261260344,3.34978967,17286.0,17285.0,0.00816597]
[1673261260597,2.76371278,17286.0,17285.0,0.00816597]
[1673261260842,2.76345583,17286.0,17285.0,0.00816597]
[1673261261610,2.76345583,17286.0,17285.0,0.00734938]
[1673261261862,2.76319888,17286.0,17285.0,0.00734938]
[1673261262920,2.76294193,17286.0,17285.0,0.00734938]
[1673261265361,3.40416565,17286.0,17285.0,0.00734938]
[1673261266393,4.01454172,17286.0,17285.0,0.00734938]
[1673261266663,4.21170582,17286.0,17285.0,0.00734938]
[1673261267373,3.76479775,17286.0,17285.0,0.00734938]
[1673261268661,2.96010603,17286.0,17285.0,0.00734938]
[1673261268902,2.76294193,17286.0,17285.0,0.00734938]
[1673261270393,2.46364792,17286.0,17285.0,0.00734938]
[1673261270900,2.46339097,17286.0,17285.0,0.00734938]
[1673261271622,2.76339097,17286.0,17285.0,0.00661445]
[1673261271865,2.76313402,17286.0,17285.0,0.00661445]
[1673261273888,2.76223507,17286.0,17285.0,0.00661445]
[1673261275675,2.07499598,17286.0,17285.0,0.00661445]
[1673261275917,2.66100987,17286.0,17285.0,0.00661445]
[1673261276928,2.08225698,17286.0,17285.0,0.56019345]
[1673261277408,1.78225698,17286.0,17285.0,0.00661445]
[1673261277655,2.08225698,17286.0,17285.0,0.00661445]
[1673261277893,2.08200609,17286.0,17285.0,0.00661445]
[1673261278872,1.78200609,17286.0,17285.0,0.00661445]
[1673261279849,1.78175632,17286.0,17285.0,0.00661445]
[1673261280838,1.78150655,17286.0,17285.0,0.00661445]
[1673261281844,1.78150655,17286.0,17285.0,0.04584963]
[1673261282305,1.19549266,17286.0,17285.0,0.04584963]
[1673261282516,1.78150655,17286.0,17285.0,0.04584963]
[1673261282736,1.19549266,17286.0,17285.0,0.04584963]
[1673261286442,1.71613935,17286.0,17285.0,0.04584963]
[1673261288197,1.19549266,17286.0,17285.0,0.04584963]
[1673261288443,1.18549266,17286.0,17285.0,0.04584963]
[1673261288730,1.70606399,17286.0,17285.0,0.04584963]
[1673261290473,1.48549266,17286.0,17285.0,0.04584963]
[1673261291962,1.48523571,17286.0,17285.0,0.04584963]
[1673261292204,1.18523571,17286.0,17285.0,0.04584963]
[1673261292954,1.48523571,17286.0,17285.0,0.04584963]
[1673261296200,1.48523571,17286.0,17285.0,0.21344963]
[1673261296679,2.0712496,17286.0,17285.0,0.21344963]
[1673261296926,2.5980773,17286.0,17285.0,0.21344963]
[1673261297182,2.5980773,17286.0,17285.0,0.19210467]
[1673261297428,3.1765793,17286.0,17285.0,0.19210467]
[1673261297670,3.4658493,17286.0,17285.0,0.02450467]
[1673261298661,3.46542522,17286.0,17285.0,0.02450467]
[1673261300153,3.46541785,17286.0,17285.0,0.02450467]
[1673261300883,2.87983541,17286.0,17285.0,0.02450467]
[1673261301375,3.46542442,17286.0,17285.0,0.02450467]
[1673261301621,2.87983541,17286.0,17285.0,0.02450467]
[1673261302105,2.87982541,17286.0,17285.0,0.02450467]
[1673261306602,2.82982541,17286.0,17285.0,0.02450467]
[1673261307111,2.82982541,17286.0,17285.0,0.02205421]
[1673261308363,2.82983541,17286.0,17285.0,0.02205421]
[1673261309079,2.54056541,17286.0,17285.0,0.02205421]
[1673261309335,2.82983541,17286.0,17285.0,0.02205421]
[1673261310346,2.99330341,17286.0,17285.0,0.02205421]
[1673261312093,2.82983541,17286.0,17285.0,0.02205421]
[1673261312343,2.82683541,17286.0,17285.0,0.02205421]
[1673261312592,3.10930341,17286.0,17285.0,0.02805421]
[1673261312840,3.14299951,17286.0,17285.0,0.02805421]
[1673261313099,3.30646751,17286.0,17285.0,0.02805421]
[1673261314071,3.14299951,17286.0,17285.0,0.02805421]
[1673261314546,3.30646751,17286.0,17285.0,0.02805421]
[1673261316954,3.10930341,17286.0,17285.0,0.02805421]
[1673261317197,3.10930341,17286.0,17285.0,0.02524879]
[1673261317729,3.10930341,17286.0,17285.0,0.01763728]
[1673261318968,3.30646751,17286.0,17285.0,0.01763728]
[1673261321742,3.91546751,17286.0,17285.0,0.01763728]
[1673261325751,3.91546751,17286.0,17285.0,0.01283609]
[1673261327235,3.91546751,17286.0,17285.0,0.01155249]
[1673261327484,3.77672664,17286.0,17285.0,0.01155249]
[1673261327729,4.53311617,17286.0,17285.0,0.01155249]
[1673261327986,5.38679286,17286.0,17285.0,0.01155249]
[1673261328507,3.97389074,17286.0,17285.0,0.01155249]
[1673261329027,4.82756743,17286.0,17285.0,0.01155249]
[1673261329277,5.16276743,17286.0,17285.0,0.01155249]
[1673261330060,5.1128442,17286.0,17285.0,0.01155249]
[1673261330558,5.52131757,17286.0,17285.0,0.01155249]
[1673261331304,5.1128442,17286.0,17285.0,0.01155249]
[1673261332839,4.25916751,17286.0,17285.0,0.01155249]
[1673261333583,5.1128442,17286.0,17285.0,0.01155249]
[1673261333861,5.1128442,17286.0,17285.0,0.00838805]
[1673261336587,5.67266519,17286.0,17285.0,0.00838805]
[1673261336846,5.1126267,17286.0,17285.0,0.00838805]
[1673261337090,5.1126267,17286.0,17285.0,0.00609586]
[1673261339069,5.1126667,17286.0,17285.0,0.00609586]
[1673261341826,5.1126667,17286.0,17285.0,0.00281839]
[1673261342072,5.1097007,17286.0,17285.0,0.00281839]
[1673261343310,4.25602401,17286.0,17285.0,0.00281839]
[1673261343552,5.10994733,17286.0,17285.0,0.00281839]
[1673261345549,5.15987056,17286.0,17285.0,0.00281839]
[1673261346093,4.99227056,17286.0,17285.0,0.00281839]
[1673261347160,4.99227056,17286.0,17285.0,0.00108317]
[1673261348193,4.70296056,17286.0,17285.0,0.00108317]
[1673261348457,4.99227056,17286.0,17285.0,0.00108317]
[1673261349516,4.94234733,17286.0,17285.0,0.00108317]
[1673261349745,4.94234733,17286.0,17285.0,0.00077911]
[1673261351253,4.08842401,17286.0,17285.0,0.00077911]
[1673261351754,4.94237672,17286.0,17285.0,0.00077911]
[1673261352022,4.08842401,17286.0,17285.0,0.00077911]
[1673261353549,4.94240461,17286.0,17285.0,0.00077911]
[1673261354056,4.99232784,17286.0,17285.0,0.00077911]
[1673261356084,5.15992784,17286.0,17285.0,0.00077911]
[1673261357100,5.10988072,17286.0,17285.0,0.00077911]
[1673261357402,1.66201377,17285.0,17283.0,0.00481069]
[1673261357628,2.65698131,17284.0,17283.0,0.00481069]
[1673261357877,3.01739705,17284.0,17283.0,0.00481069]
[1673261358127,3.03532705,17284.0,17283.0,0.00481069]
[1673261358894,3.03506756,17284.0,17283.0,0.00481069]
[1673261359398,2.87159956,17284.0,17283.0,0.00481069]
[1673261359649,2.93959956,17284.0,17283.0,0.00681069]
[1673261359904,2.9393832,17284.0,17283.0,0.00681069]
[1673261360403,2.7422191,17284.0,17283.0,0.00681069]
[1673261360910,2.74200274,17284.0,17283.0,0.00681069]
[1673261361656,3.01407169,17284.0,17283.0,0.00681069]
[1673261361903,3.01385533,17284.0,17283.0,0.00681069]
[1673261363050,3.01363897,17284.0,17283.0,0.00681069]
[1673261364105,3.01342261,17284.0,17283.0,0.00681069]
[1673261364858,3.01320626,17284.0,17283.0,0.00681069]
[1673261365869,3.01298991,17284.0,17283.0,0.00681069]
[1673261366858,3.01277356,17284.0,17283.0,0.00681069]
[1673261367343,3.01277356,17284.0,17283.0,0.00612963]
[1673261367853,2.94477356,17284.0,17283.0,0.00412963]
[1673261368099,3.5344048,17284.0,17283.0,0.00412963]
[1673261368499,3.6704048,17284.0,17283.0,0.00412963]
[1673261368694,3.5344048,17284.0,17283.0,0.00412963]
[1673261368905,3.67018844,17284.0,17283.0,0.00412963]
[1673261369943,3.66997208,17284.0,17283.0,0.00412963]
[1673261370969,3.66975572,17284.0,17283.0,0.00412963]
[1673261373821,3.86691982,17284.0,17283.0,0.00412963]
[1673261374872,3.66975572,17284.0,17283.0,0.00412963]
[1673261376592,3.83322372,17284.0,17283.0,0.00412963]
[1673261376840,4.03038782,17284.0,17283.0,0.00412963]
[1673261377339,3.86691982,17284.0,17283.0,0.0025512]
[1673261377590,3.66975572,17284.0,17283.0,0.0025512]
[1673261378336,3.83322372,17284.0,17283.0,0.0025512]
[1673261378595,4.03038782,17284.0,17283.0,0.0025512]
[1673261379104,4.08031105,17284.0,17283.0,0.00168336]
[1673261381579,0.99770371,17283.0,17280.0,0.80832372]
[1673261381829,0.58610652,17281.0,17280.0,0.1671]
[1673261382079,1.78615183,17281.0,17280.0,0.1671]
[1673261382331,2.08615183,17281.0,17280.0,0.529509]
[1673261383337,2.21915183,17281.0,17280.0,0.529509]
[1673261383584,1.63304531,17281.0,17280.0,0.529509]
[1673261384355,2.21915183,17281.0,17280.0,0.529509]
[1673261386409,2.21985085,17281.0,17280.0,0.529509]
[1673261387891,2.79852085,17281.0,17280.0,0.362409]
[1673261388137,2.79852085,17281.0,17279.0,0.57031585]
[1673261388392,0.86364698,17280.0,17279.0,0.57031585]
[1673261388642,2.02105298,17280.0,17279.0,0.93272485]
[1673261388889,1.50011131,17280.0,17279.0,0.93272485]
[1673261389618,2.02100874,17280.0,17279.0,0.93272485]
[1673261389866,2.02106874,17280.0,17279.0,0.93272485]
[1673261390116,1.50017131,17280.0,17279.0,0.93272485]
[1673261390376,2.08206861,17280.0,17279.0,0.93272485]
[1673261390622,1.56117131,17280.0,17279.0,0.93272485]
[1673261392451,2.72598083,17280.0,17279.0,0.00351585]
[1673261392930,2.72598083,17280.0,17279.0,0.36592485]
[1673261393754,2.66498083,17280.0,17279.0,0.36592485]
[1673261394257,2.07957333,17280.0,17279.0,0.36592485]
[1673261394522,1.77957333,17280.0,17279.0,0.53252485]
[1673261394769,1.91257333,17280.0,17279.0,0.53252485]
[1673261395276,2.21257333,17280.0,17279.0,0.53252485]
[1673261395536,2.79867985,17280.0,17279.0,0.53252485]
[1673261395785,2.21251333,17280.0,17279.0,0.36592485]
[1673261396030,2.21251333,17280.0,17279.0,0.00351585]
[1673261396810,2.21251333,17280.0,17279.0,0.36592485]
[1673261398581,2.21251333,17280.0,17279.0,0.00351585]
[1673261398841,1.91251333,17280.0,17279.0,0.00351585]
[1673261399109,2.21251333,17280.0,17279.0,0.00351585]
[1673261400317,2.51251333,17280.0,17279.0,0.00351585]
[1673261401576,3.09861985,17280.0,17279.0,0.00351585]
[1673261401834,3.46130516,17280.0,17279.0,0.00310543]
[1673261402108,3.09822958,17280.0,17279.0,0.00310543]
[1673261403611,2.51251333,17280.0,17279.0,0.00310543]
[1673261405095,3.08604424,17280.0,17279.0,0.00310543]
[1673261405870,3.34494664,17280.0,17279.0,0.00310543]
[1673261406123,3.21194664,17280.0,17279.0,0.00310543]
[1673261406443,3.97817616,17280.0,17279.0,0.00310543]
[1673261406674,4.33880826,17280.0,17279.0,0.00206047]
[1673261406904,4.07990586,17280.0,17279.0,0.00206047]
[1673261407682,4.12980934,17280.0,17279.0,0.00206047]
[1673261407943,3.99480934,17280.0,17279.0,0.00206047]
[1673261408722,4.66576527,17280.0,17279.0,0.00206047]
[1673261409284,4.13080934,17280.0,17279.0,0.00206047]
[1673261411642,3.96734134,17280.0,17279.0,0.00206047]
[1673261411881,4.13080934,17280.0,17279.0,0.00133521]
[1673261412648,4.08090586,17280.0,17279.0,0.00133521]
[1673261412926,3.91743786,17280.0,17279.0,0.00133521]
[1673261413199,4.08090586,17280.0,17279.0,0.00133521]
[1673261413450,4.58848457,17280.0,17279.0,0.00133521]
[1673261414724,4.58848457,17280.0,17279.0,0.00090315]
[1673261415246,4.08090586,17280.0,17279.0,0.00090315]
[1673261416769,0.7130126,17279.0,17276.0,10.97058407]
[1673261417016,0.51999562,17277.0,17276.0,10.97058407]
[1673261417268,2.59911293,17277.0,17276.0,10.97058407]
[1673261417515,2.59911293,17277.0,17276.0,11.33299307]
[1673261417725,2.59911293,17277.0,17276.0,10.97058407]
[1673261418010,2.07911731,17277.0,17276.0,11.33299307]
[1673261418266,1.50031331,17277.0,17276.0,11.33299307]
[1673261418530,1.63531331,17277.0,17276.0,11.33299307]
[1673261419031,1.63531331,17277.0,17276.0,10.97058407]
[1673261419293,1.63531331,17277.0,17276.0,11.33299307]
[1673261419800,1.33531331,17277.0,17276.0,10.97058407]
[1673261420066,1.63531331,17277.0,17276.0,11.33299307]
[1673261420575,2.15530893,17277.0,17276.0,11.33299307]
[1673261421335,2.15600799,17277.0,17276.0,10.97058407]
[1673261421581,2.73481199,17277.0,17276.0,11.33299307]
[1673261421846,2.73481199,17277.0,17276.0,10.97058407]
[1673261422103,2.73481199,17277.0,17276.0,11.33299307]
[1673261422869,2.73481199,17277.0,17276.0,10.97058407]
[1673261423101,2.73481199,17277.0,17276.0,11.33299307]
[1673261423364,2.73481199,17277.0,17276.0,10.97058407]
[1673261423619,2.73481199,17277.0,17276.0,11.33299307]
[1673261423880,2.73481199,17277.0,17276.0,10.97058407]
[1673261424133,2.73481199,17277.0,17276.0,11.33299307]
[1673261424395,2.73481199,17277.0,17276.0,10.97058407]
[1673261424652,2.73481199,17277.0,17276.0,11.33299307]
[1673261424906,2.73455263,17277.0,17276.0,10.97058407]
[1673261425156,2.73455263,17277.0,17276.0,11.33299307]
[1673261425419,2.73455263,17277.0,17276.0,10.97058407]
[1673261425667,2.73455263,17277.0,17276.0,11.33299307]
[1673261426405,2.73455263,17277.0,17276.0,10.97058407]
[1673261426650,2.73455263,17277.0,17276.0,11.33299307]
[1673261427149,2.15574863,17277.0,17276.0,11.33299307]
[1673261427946,2.15548929,17277.0,17276.0,11.50059307]
[1673261428450,2.73429329,17277.0,17276.0,11.50059307]
[1673261428959,2.73403771,17277.0,17276.0,11.50059307]
[1673261429681,2.15523371,17277.0,17276.0,11.50059307]
[1673261429928,2.15497813,17277.0,17276.0,11.50059307]
[1673261430924,2.15472255,17277.0,17276.0,11.50059307]
[1673261432075,2.15460338,17277.0,17276.0,11.50059307]
[1673261432953,2.15448421,17277.0,17276.0,11.50059307]
[1673261433199,1.85448421,17277.0,17276.0,11.50052647]
[1673261433459,0.75568459,17277.0,17276.0,12.13654737]
[1673261433734,0.17688059,17277.0,17276.0,12.13654737]
[1673261433988,0.61058792,17277.0,17276.0,12.13654737]
[1673261434235,0.17688059,17277.0,17276.0,11.50052647]
[1673261434494,0.61058918,17277.0,17276.0,12.13654737]
[1673261434993,0.61033362,17277.0,17276.0,12.13654737]
[1673261435243,0.61033362,17277.0,17276.0,11.50052647]
[1673261435483,0.17662503,17277.0,17276.0,11.50052647]
[1673261436006,0.17636948,17277.0,17276.0,11.50052647]
[1673261436506,0.17636948,17277.0,17276.0,12.13654737]
[1673261436756,0.74294064,17277.0,17276.0,14.06843726]
[1673261437028,0.74268132,17277.0,17276.0,14.06843726]
[1673261437271,0.60794064,17277.0,17276.0,14.06843726]
[1673261437515,0.43443196,17277.0,17276.0,14.06843726]
[1673261437764,0.30819033,17277.0,17276.0,14.81647426]
[1673261438017,0.17419033,17277.0,17276.0,14.81447426]
[1673261438270,0.17919033,17277.0,17276.0,14.82547426]
[1673261438775,0.00569906,17277.0,17276.0,14.82547426]
[1673261439020,0.00520427,17277.0,17276.0,15.83057426]
[1673261439779,0.00020427,17277.0,17276.0,15.81957426]
[1673261440037,0.17349127,17278.0,17277.0,0.4]
[1673261440308,0.17349127,17278.0,17277.0,3.6344419]
[1673261441086,0.17286449,17278.0,17277.0,4.14346927]
[1673261441336,0.01,17278.0,17277.0,4.16846927]
[1673261442092,0.00937322,17278.0,17277.0,4.16846927]
[1673261442340,0.00937322,17278.0,17277.0,4.16896281]
[1673261443072,0.00874644,17278.0,17277.0,4.16896281]
[1673261444089,0.00811966,17278.0,17277.0,4.20372583]
[1673261445097,0.00749288,17278.0,17277.0,4.20372583]
[1673261445835,0.0068661,17278.0,17277.0,4.20372583]
[1673261446827,0.00623932,17278.0,17277.0,4.20372583]
[1673261447801,0.00623932,17278.0,17277.0,4.03772583]
[1673261448054,0.00561254,17278.0,17277.0,4.03772583]
[1673261448890,0.00498576,17278.0,17277.0,4.03772583]
[1673261450842,0.00435896,17278.0,17277.0,4.03772583]
[1673261451830,0.00373147,17278.0,17277.0,4.03772583]
[1673261453088,0.00310398,17278.0,17277.0,4.03772583]
[1673261453860,0.00247537,17278.0,17277.0,4.03772583]
[1673261454872,0.00184773,17278.0,17277.0,4.03772583]
[1673261456114,0.00122025,17278.0,17277.0,4.03772583]
[1673261456862,0.00059277,17278.0,17277.0,4.03772583]
[1673261457662,0.17375734,17278.0,17277.0,4.03772583]
[1673261457936,0.17316581,17278.0,17277.0,4.03772583]
[1673261458980,0.17253817,17278.0,17277.0,4.03772583]
[1673261459229,0.17253817,17278.0,17277.0,3.40170493]
[1673261459476,0.4327798,17278.0,17277.0,1.33119939]
[1673261459725,0.60724158,17278.0,17277.0,1.33119939]
[1673261459972,0.25998166,17278.0,17277.0,1.33119939]
[1673261460463,0.60698161,17278.0,17277.0,1.33119939]
[1673261461704,0.84596071,17278.0,17277.0,0.82217202]
[1673261461944,0.49896076,17278.0,17277.0,0.82217202]
[1673261462186,0.84513205,17278.0,17277.0,0.82217202]
[1673261462428,0.4987008,17278.0,17277.0,0.82217202]
[1673261463662,0.06520193,17278.0,17277.0,0.82217202]
[1673261463908,0.06494267,17278.0,17277.0,0.82217202]
[1673261464901,0.06468341,17278.0,17277.0,0.82217202]
[1673261465869,0.06445208,17278.0,17277.0,0.82217202]
[1673261467615,0.36445208,17278.0,17277.0,0.82217202]
[1673261467872,0.36419284,17278.0,17277.0,0.82217202]
[1673261468398,0.06419284,17278.0,17277.0,0.82217202]
[1673261468916,0.0639336,17278.0,17277.0,0.82217202]
[1673261469931,0.36367436,17278.0,17277.0,0.82217202]
[1673261471182,0.06341513,17278.0,17277.0,0.82217202]
[1673261471778,0.36341513,17278.0,17277.0,0.82217202]
[1673261472533,0.88341075,17278.0,17277.0,0.82217202]
[1673261472781,0.88341075,17278.0,17277.0,0.42217202]
[1673261472782,2.04095075,17278.0,17277.0,0.42217202]
[1673261473034,2.04095075,17278.0,17277.0,0.05976302]
[1673261473035,2.77466166,17278.0,17277.0,0.05976302]
[1673261473529,2.48527166,17278.0,17277.0,0.05976302]
[1673261473826,3.07026673,17278.0,17277.0,0.05976302]
[1673261474033,3.07026673,17278.0,17277.0,0.05082602]
[1673261474292,3.07026673,17278.0,17277.0,0.03476302]
[1673261474559,3.20626673,17278.0,17277.0,0.03776302]
[1673261475333,2.28697166,17278.0,17277.0,0.03776302]
[1673261475807,2.28671247,17278.0,17277.0,0.03776302]
[1673261477304,2.74384343,17278.0,17277.0,0.03776302]
[1673261481026,2.82477256,17278.0,17277.0,0.02517928]
[1673261481802,2.77326681,17278.0,17277.0,0.02517928]
[1673261483289,2.17231,17278.0,17277.0,0.02517928]
[1673261483544,2.77254569,17278.0,17277.0,0.02517928]
[1673261483789,3.35754076,17278.0,17277.0,0.02517928]
[1673261484842,2.75730507,17278.0,17277.0,0.02517928]
[1673261485105,2.17231,17278.0,17277.0,0.02517928]
[1673261486074,2.33941,17278.0,17277.0,0.02517928]
[1673261487575,2.92440507,17278.0,17276.0,10.49569675]
[1673261487815,0.51971877,17277.0,17276.0,10.49569675]
[1673261488061,2.55613077,17277.0,17276.0,10.49569675]
[1673261488816,2.036412,17277.0,17276.0,10.49569675]
[1673261489343,2.55613077,17277.0,17276.0,10.49769675]
[1673261489586,2.036412,17277.0,17276.0,10.49569675]
[1673261489830,2.171412,17277.0,17276.0,10.49769675]
[1673261491071,2.171412,17277.0,17276.0,10.86010575]
[1673261491325,2.69113077,17277.0,17276.0,10.49769675]
[1673261491574,2.69113077,17277.0,17276.0,10.86010575]
[1673261492797,2.69113077,17277.0,17276.0,10.49769675]
[1673261493781,2.85873077,17277.0,17276.0,10.49769675]
[1673261494274,2.339012,17277.0,17276.0,10.49769675]
[1673261494764,2.75842052,17277.0,17276.0,10.49769675]
[1673261495258,2.339012,17277.0,17276.0,10.49769675]
[1673261495998,2.92400707,17277.0,17276.0,10.49769675]
[1673261496239,3.63747042,17277.0,17276.0,10.49769675]
[1673261497816,3.05247535,17277.0,17276.0,10.49769675]
[1673261498555,3.63763167,17277.0,17276.0,10.49769675]
[1673261499364,4.07598184,17277.0,17276.0,10.49769675]
[1673261499620,4.0761848,17277.0,17276.0,10.49769675]
[1673261500124,4.07618656,17277.0,17276.0,10.49769675]
[1673261500855,3.63783639,17277.0,17276.0,10.49769675]
[1673261501587,3.05247535,17277.0,17276.0,10.49769675]
[1673261503059,3.06097535,17277.0,17276.0,10.49769675]
[1673261503794,3.64626836,17277.0,17276.0,10.49769675]
[1673261504035,3.06097535,17277.0,17276.0,10.49769675]
[1673261504276,3.64626978,17277.0,17276.0,10.49769675]
[1673261504550,3.64627474,17277.0,17276.0,10.49769675]
[1673261504789,4.08548921,17277.0,17276.0,10.49769675]
[1673261507133,4.08552741,17277.0,17276.0,10.49769675]
[1673261507375,3.50018982,17277.0,17276.0,10.49769675]
[1673261507851,3.64631079,17277.0,17276.0,10.49769675]
[1673261508384,3.06097535,17277.0,17276.0,10.49769675]
[1673261509813,3.06097535,17277.0,17276.0,10.49761016]
[1673261511263,3.22444335,17277.0,17276.0,10.49761016]
[1673261511798,3.06097535,17277.0,17276.0,10.49761016]
[1673261517154,3.06097535,17277.0,17276.0,10.36157077]
[1673261517402,3.05247535,17277.0,17276.0,10.32701804]
[1673261518179,2.88487535,17277.0,17276.0,10.32701804]
[1673261520301,2.88487535,17277.0,17276.0,10.30701804]
[1673261524263,3.17431535,17277.0,17276.0,10.30701804]
[1673261524486,3.71263195,17277.0,17276.0,10.30701804]
[1673261524725,2.90280535,17277.0,17276.0,10.30701804]
[1673261526215,2.91130535,17277.0,17276.0,10.30701804]
[1673261526953,2.91130535,17277.0,17276.0,10.239835]
[1673261528236,3.18281535,17277.0,17276.0,10.239835]
[1673261532370,3.23863493,17277.0,17276.0,10.239835]
[1673261533139,3.23859493,17277.0,17276.0,10.239835]
[1673261534435,3.63101852,17277.0,17276.0,10.239835]
[1673261535210,3.23859493,17277.0,17276.0,10.23960377]
[1673261535965,4.09257553,17277.0,17276.0,10.23960377]
[1673261536224,4.26017553,17277.0,17276.0,10.23960377]
[1673261536480,3.40619493,17277.0,17276.0,10.23960377]
[1673261536726,4.26017553,17277.0,17276.0,10.23960377]
[1673261536989,3.40619493,17277.0,17276.0,10.23960377]
[1673261537784,3.35037535,17277.0,17276.0,10.23960377]
[1673261538037,3.34437535,17277.0,17276.0,10.23960377]
[1673261539059,3.34439535,17277.0,17276.0,10.23960377]
[1673261541372,3.34439535,17277.0,17276.0,10.0973752]
[1673261541635,3.34439535,17277.0,17276.0,10.01655242]
[1673261541891,3.34439535,17277.0,17276.0,10.01012228]
[1673261546705,3.40021493,17277.0,17276.0,10.01012228]
[1673261549011,3.39171493,17277.0,17276.0,10.01012228]
[1673261549539,4.24569553,17277.0,17276.0,10.01012228]
[1673261549797,4.80575208,17277.0,17276.0,10.01012228]
[1673261550095,4.96922008,17277.0,17276.0,10.01012228]
[1673261557776,4.96922008,17277.0,17276.0,9.86338833]
[1673261557995,4.96922008,17277.0,17276.0,9.75268635]
[1673261558251,4.96922008,17277.0,17276.0,9.7320691]
[1673261559556,4.40916353,17277.0,17276.0,9.7320691]
[1673261566264,3.25155553,17277.0,17276.0,9.7320691]
[1673261566518,3.26005553,17277.0,17276.0,9.7320691]
[1673261566764,3.09658753,17277.0,17276.0,9.7320691]
[1673261567020,3.83885953,17277.0,17276.0,9.7320691]
[1673261567269,3.67539153,17277.0,17276.0,9.7320691]
[1673261568004,3.67539153,17277.0,17276.0,9.7220691]
[1673261568252,3.97539153,17277.0,17276.0,9.7220691]
[1673261568508,4.13885953,17277.0,17276.0,9.7220691]
[1673261568987,3.12141093,17277.0,17276.0,9.7220691]
[1673261574516,3.12141093,17277.0,17276.0,9.7420691]
[1673261576058,3.12141093,17277.0,17276.0,9.77324167]
[1673261576311,3.12141093,17277.0,17276.0,9.77318132]
[1673261578256,2.95381093,17277.0,17276.0,9.77318132]
[1673261579810,2.89799135,17277.0,17276.0,9.77318132]
[1673261580824,2.95381093,17277.0,17276.0,9.77318132]
[1673261581077,3.80779153,17277.0,17276.0,9.77318132]
[1673261585146,3.51837153,17277.0,17276.0,9.77318132]
[1673261585396,3.80780153,17277.0,17276.0,9.77318132]
[1673261586908,3.75198195,17277.0,17276.0,9.77318132]
[1673261587678,3.80780153,17277.0,17276.0,9.77318132]
[1673261588169,3.75198195,17277.0,17276.0,9.77318132]
[1673261589469,3.80780153,17277.0,17276.0,9.77318132]
[1673261592689,3.80780153,17277.0,17276.0,9.7680892]
[1673261596040,3.53630153,17277.0,17276.0,9.7680892]
[1673261596543,3.72564385,17277.0,17276.0,9.7680892]
[1673261598043,3.99714385,17277.0,17276.0,9.7680892]
[1673261598299,3.80780153,17277.0,17276.0,9.7680892]
[1673261598548,2.95382093,17277.0,17276.0,9.7680892]
[1673261598793,3.80885038,17277.0,17276.0,9.7680892]
[1673261601785,3.7530308,17277.0,17276.0,9.7680892]
[1673261602792,4.41785038,17277.0,17276.0,9.7680892]
[1673261608651,4.07913297,17277.0,17276.0,9.7680892]
[1673261608870,4.41771443,17277.0,17276.0,9.7680892]
[1673261611667,4.12828443,17277.0,17276.0,9.7680892]
[1673261611924,2.65589093,17277.0,17276.0,9.7680892]
[1673261612180,2.35589093,17277.0,17276.0,9.7680892]
[1673261613487,2.65589093,17277.0,17276.0,9.7680892]
[1673261613820,2.60007135,17277.0,17276.0,10.1304982]
[1673261613998,1.736412,17277.0,17276.0,10.74466948]
[1673261614498,1.736412,17277.0,17276.0,9.7680892]
[1673261614757,1.736412,17277.0,17276.0,10.1304982]
[1673261615006,1.736412,17277.0,17276.0,10.13038805]
[1673261615506,1.736412,17277.0,17276.0,9.76797905]
[1673261615760,1.736412,17277.0,17276.0,10.13038805]
[1673261615761,2.036412,17277.0,17276.0,10.13038805]
[1673261616058,2.036412,17277.0,17276.0,9.76797905]
[1673261616321,2.036412,17277.0,17276.0,10.13038805]
[1673261616571,2.62243818,17277.0,17276.0,9.76797905]
[1673261616844,2.62243818,17277.0,17276.0,10.13038805]
[1673261618125,2.04363418,17277.0,17276.0,9.76797905]
[1673261618368,2.04363418,17277.0,17276.0,10.13038805]
[1673261618660,2.04363418,17277.0,17276.0,9.76797905]
[1673261618957,2.04363418,17277.0,17276.0,10.13038805]
[1673261619180,2.04363418,17277.0,17276.0,9.76797905]
[1673261619432,1.457608,17277.0,17276.0,10.13038805]
[1673261619946,2.04363418,17277.0,17276.0,9.76797905]
[1673261620196,1.457608,17277.0,17276.0,9.76797905]
[1673261620453,1.457608,17277.0,17276.0,10.13038805]